bitfinex/quotes_BTCUSD_20241130
["timestamp","ask_amount","ask_price","bid_price","bid_amount"]
[1733003329316,0.22751546,96933.0,96932.0,0.001728]
[1733003330456,0.21787786,96933.0,96932.0,0.001728]
[1733003330677,0.22752208,96933.0,96932.0,0.001728]
[1733003333301,0.24295283,96933.0,96932.0,0.001728]
[1733003334186,0.24296589,96933.0,96932.0,0.001728]
[1733003334406,0.21787786,96933.0,96932.0,0.001728]
[1733003334618,0.24296571,96933.0,96932.0,0.001728]
[1733003334836,0.24234518,96933.0,96932.0,0.001728]
[1733003335302,0.2269065,96933.0,96932.0,0.001728]
[1733003335513,0.24234518,96933.0,96932.0,0.001728]
[1733003336150,0.2269065,96933.0,96932.0,0.001728]
[1733003337525,0.22696595,96933.0,96932.0,0.001728]
[1733003340846,0.21731678,96933.0,96932.0,0.001728]
[1733003341063,0.22696608,96933.0,96932.0,0.001728]
[1733003341937,0.24240496,96933.0,96932.0,0.001728]
[1733003342148,0.22696608,96933.0,96932.0,0.001728]
[1733003343677,0.226968,96933.0,96932.0,0.001728]
[1733003348447,0.2286966,96933.0,96932.0,0.001728]
[1733003354197,0.2775004,96933.0,96932.0,0.001728]
[1733003354672,0.27750008,96933.0,96932.0,0.001728]
[1733003360606,0.22870008,96933.0,96932.0,0.001728]
[1733003360829,0.24484897,96933.0,96932.0,0.001728]
[1733003372273,0.23519427,96933.0,96932.0,0.001728]
[1733003372478,0.24485018,96933.0,96932.0,0.001728]
[1733003379055,0.24485035,96933.0,96932.0,0.001728]
[1733003382651,0.24485101,96933.0,96932.0,0.001728]
[1733003386193,0.24485138,96933.0,96932.0,0.001728]
[1733003388992,0.37715138,96933.0,96932.0,0.001728]
[1733003389209,0.24485138,96933.0,96932.0,0.001728]
[1733003389647,0.24485141,96933.0,96932.0,0.001728]
[1733003392008,0.27694693,96933.0,96932.0,0.001728]
[1733003402474,0.24485141,96933.0,96932.0,0.001728]
[1733003408641,0.23519427,96933.0,96932.0,0.001728]
[1733003411590,0.24484549,96933.0,96932.0,0.001728]
[1733003413445,0.23519427,96933.0,96932.0,0.001728]
[1733003413660,0.24484561,96933.0,96932.0,0.001728]
[1733003414345,0.27693041,96933.0,96932.0,0.001728]
[1733003415059,0.24484561,96933.0,96932.0,0.001728]
[1733003416748,0.23519427,96933.0,96932.0,0.001728]
[1733003417897,0.23519427,96933.0,96932.0,0.00098594]
[1733003418426,0.26728011,96933.0,96932.0,0.00098594]
[1733003418867,0.23519427,96933.0,96932.0,0.00098594]
[1733003420415,0.26728108,96933.0,96932.0,0.00098594]
[1733003421486,0.23519427,96933.0,96932.0,0.12428594]
[1733003421709,0.21904538,96933.0,96932.0,0.12829165]
[1733003422178,0.21904538,96933.0,96932.0,0.26765465]
[1733003422395,0.21904538,96933.0,96932.0,0.12829165]
[1733003422620,0.20504538,96933.0,96932.0,0.12829165]
[1733003422843,0.20804538,96933.0,96932.0,0.12829165]
[1733003423063,0.21404538,96933.0,96932.0,0.12829165]
[1733003423291,0.21104538,96933.0,96932.0,0.12829165]
[1733003423704,0.21404538,96933.0,96932.0,0.12829165]
[1733003424131,0.20504538,96933.0,96932.0,0.12829165]
[1733003424371,0.20804538,96933.0,96932.0,0.12829165]
[1733003425034,0.21404538,96933.0,96932.0,0.12829165]
[1733003425238,0.20804538,96933.0,96932.0,0.12829165]
[1733003425678,0.21304538,96933.0,96932.0,0.12829165]
[1733003426302,0.21004538,96933.0,96932.0,0.12829165]
[1733003427153,0.21304538,96933.0,96932.0,0.12829165]
[1733003427572,0.21004538,96933.0,96932.0,0.12829165]
[1733003428970,0.21204538,96933.0,96932.0,0.12829165]
[1733003431506,0.21204538,96933.0,96932.0,0.12990755]
[1733003432648,0.11163326,96933.0,96932.0,0.12990755]
[1733003432861,0.21479726,96933.0,96932.0,0.12990755]
[1733003433982,0.11163326,96933.0,96932.0,0.12990755]
[1733003434201,0.00878805,96933.0,96932.0,0.23307255]
[1733003434444,0.00878805,96933.0,96932.0,0.12990755]
[1733003434883,0.00878805,96933.0,96932.0,0.23307255]
[1733003435528,0.00178805,96933.0,96932.0,0.23307255]
[1733003435759,0.00478805,96933.0,96932.0,0.23307255]
[1733003436414,0.00378805,96933.0,96932.0,0.23307255]
[1733003437498,0.00178805,96933.0,96932.0,0.23307255]
[1733003439009,0.00178805,96933.0,96932.0,0.23407255]
[1733003440391,0.00178805,96933.0,96932.0,0.4194183]
[1733003440613,0.00178805,96933.0,96932.0,0.23407255]
[1733003440823,0.00178805,96933.0,96932.0,0.23307255]
[1733003441110,0.00178805,96933.0,96932.0,0.41831919]
[1733003441328,0.00178805,96933.0,96932.0,0.41931919]
[1733003441543,0.00178805,96933.0,96932.0,0.23707255]
[1733003441751,0.00178805,96933.0,96932.0,0.23307255]
[1733003442212,0.00278805,96933.0,96932.0,0.23707255]
[1733003442427,0.00178805,96933.0,96932.0,0.23407255]
[1733003442639,0.00178805,96933.0,96932.0,0.23307255]
[1733003442848,0.00278805,96933.0,96932.0,0.23707255]
[1733003443261,0.00278805,96933.0,96932.0,0.46875474]
[1733003443480,0.00278805,96933.0,96932.0,0.23707255]
[1733003444146,0.00178805,96933.0,96932.0,0.23307255]
[1733003444289,0.00278805,96933.0,96932.0,0.23907255]
[1733003444701,0.00178805,96933.0,96932.0,0.23607255]
[1733003444896,0.00278805,96933.0,96932.0,0.23607255]
[1733003445099,0.00278805,96933.0,96932.0,0.23907255]
[1733003445502,0.00278805,96933.0,96932.0,0.42417016]
[1733003445929,0.00278805,96933.0,96932.0,0.23907255]
[1733003446464,0.00278805,96933.0,96932.0,0.42414969]
[1733003448009,0.00278805,96933.0,96932.0,0.23907255]
[1733003448668,0.00278805,96933.0,96932.0,0.47036321]
[1733003449527,0.00278805,96933.0,96932.0,0.23907255]
[1733003450610,0.00278805,96933.0,96932.0,0.47031491]
[1733003450818,0.00178805,96933.0,96932.0,0.46431491]
[1733003450999,0.00278805,96933.0,96932.0,0.46631491]
[1733003451316,0.00378805,96933.0,96932.0,0.46931491]
[1733003451518,0.00378805,96933.0,96932.0,0.46929922]
[1733003451746,0.00378805,96933.0,96932.0,0.23807255]
[1733003451953,0.00178805,96933.0,96932.0,0.23307255]
[1733003452163,0.00278805,96933.0,96932.0,0.23607255]
[1733003452391,0.00378805,96933.0,96932.0,0.23807255]
[1733003452522,0.00378805,96933.0,96932.0,0.23507255]
[1733003453344,0.00378805,96933.0,96932.0,0.46626343]
[1733003453762,0.00378805,96933.0,96932.0,0.47026343]
[1733003453953,0.00378805,96933.0,96932.0,0.47426343]
[1733003454802,0.00378805,96933.0,96932.0,0.24307255]
[1733003455892,0.00378805,96933.0,96932.0,0.2417737]
[1733003458408,0.00378805,96933.0,96932.0,0.47297369]
[1733003459839,0.00378805,96933.0,96932.0,0.2417737]
[1733003461583,0.00378805,96933.0,96932.0,0.2426379]
[1733003463177,0.00378805,96933.0,96932.0,0.1658379]
[1733003463630,0.00378805,96933.0,96932.0,0.11965081]
[1733003464728,0.00378805,96933.0,96932.0,0.30473225]
[1733003465593,0.00378805,96933.0,96932.0,0.11965081]
[1733003466673,0.00378805,96933.0,96932.0,0.01648581]
[1733003466885,0.00378805,96933.0,96932.0,0.15539148]
[1733003466886,0.15475205,96933.0,96932.0,0.15539148]
[1733003467116,0.15475205,96933.0,96932.0,0.01648581]
[1733003467752,0.15475205,96933.0,96932.0,0.00648581]
[1733003467753,0.15275205,96933.0,96932.0,0.00648581]
[1733003467960,0.15575205,96933.0,96932.0,0.00648581]
[1733003468390,0.15475205,96933.0,96932.0,0.00648581]
[1733003469914,0.00478805,96933.0,96932.0,0.00648581]
[1733003470131,0.00578805,96933.0,96932.0,0.00648581]
[1733003471039,0.10795205,96933.0,96932.0,0.14544191]
[1733003471486,0.10595205,96933.0,96932.0,0.14544191]
[1733003471717,0.10695205,96933.0,96932.0,0.14544191]
[1733003472223,0.10695205,96933.0,96932.0,0.00648581]
[1733003472691,0.00378805,96933.0,96932.0,0.00648581]
[1733003473212,0.00278805,96933.0,96932.0,0.10965081]
[1733003473463,0.00278805,96933.0,96932.0,0.24860691]
[1733003473692,0.00378805,96933.0,96932.0,0.10965081]
[1733003473915,0.00278805,96933.0,96932.0,0.10965081]
[1733003474158,0.00178805,96933.0,96932.0,0.10965081]
[1733003475796,0.00178805,96933.0,96932.0,0.3413346]
[1733003476491,0.00178805,96933.0,96932.0,0.3423346]
[1733003477216,0.00178805,96933.0,96932.0,0.3443346]
[1733003477343,0.00178805,96933.0,96932.0,0.11265081]
[1733003478453,0.00178805,96933.0,96932.0,0.23505081]
[1733003478885,0.00178805,96933.0,96932.0,0.23305081]
[1733003479115,0.00178805,96933.0,96932.0,0.23205081]
[1733003479544,0.00178805,96933.0,96932.0,0.23405081]
[1733003479963,0.03,96953.0,96952.0,0.235543]
[1733003480192,0.00027853,96970.0,96954.0,0.01]
[1733003480423,0.00027853,96970.0,96969.0,0.24218462]
[1733003480643,0.00027853,96970.0,96969.0,0.179625]
[1733003480869,0.00027853,96970.0,96969.0,0.23223078]
[1733003481082,0.00027853,96970.0,96969.0,0.25055693]
[1733003481306,0.0017286,96982.0,96974.0,0.10312]
[1733003481532,0.0017286,96982.0,96974.0,0.33943712]
[1733003481741,0.0017286,96982.0,96974.0,0.10799834]
[1733003481955,0.00111655,96975.0,96974.0,0.10982329]
[1733003482403,0.00111655,96975.0,96974.0,0.25982329]
[1733003482628,0.00111655,96975.0,96974.0,0.25799834]
[1733003482844,0.00111655,96975.0,96974.0,0.53611166]
[1733003483063,0.00111655,96975.0,96974.0,0.25799834]
[1733003483302,0.00111655,96975.0,96974.0,0.27863043]
[1733003483537,0.00111655,96975.0,96974.0,0.26599834]
[1733003483973,0.00111655,96975.0,96974.0,0.25799834]
[1733003484192,0.00211655,96975.0,96974.0,0.26499834]
[1733003484406,0.00211655,96975.0,96974.0,0.26899834]
[1733003486470,0.00211655,96975.0,96974.0,0.38184355]
[1733003486712,0.00211655,96975.0,96974.0,0.40484355]
[1733003487361,0.00211655,96975.0,96974.0,0.40084355]
[1733003487568,0.00111655,96975.0,96974.0,0.39384355]
[1733003487775,0.00211655,96975.0,96974.0,0.40184355]
[1733003488839,0.00211655,96975.0,96974.0,0.40584355]
[1733003489880,0.00211655,96975.0,96974.0,0.63634828]
[1733003490104,0.00211655,96975.0,96974.0,0.40584355]
[1733003490602,0.00211655,96975.0,96974.0,0.63634828]
[1733003491049,0.00211655,96975.0,96974.0,0.40584355]
[1733003492559,0.00211655,96975.0,96974.0,0.59014298]
[1733003493440,0.00211655,96975.0,96974.0,0.40584355]
[1733003494090,0.00211655,96975.0,96974.0,0.42670881]
[1733003494305,0.00211655,96975.0,96974.0,0.26999834]
[1733003494528,0.00211655,96975.0,96974.0,0.36211404]
[1733003494737,0.00211655,96975.0,96974.0,0.26999834]
[1733003495801,0.00211655,96975.0,96974.0,0.26599834]
[1733003496293,0.00111655,96975.0,96974.0,0.26199834]
[1733003496518,0.00211655,96975.0,96974.0,0.26999834]
[1733003503164,0.00211655,96975.0,96974.0,0.01687834]
[1733003503375,0.00211655,96975.0,96974.0,0.11999834]
[1733003507476,0.00211655,96975.0,96974.0,0.01687834]
[1733003507708,0.10523555,96975.0,96974.0,0.012]
[1733003507934,0.10523555,96975.0,96974.0,0.01653046]
[1733003508781,0.00211655,96975.0,96974.0,0.01653046]
[1733003509012,0.10523555,96975.0,96974.0,0.012]
[1733003509478,0.00211655,96975.0,96974.0,0.01653046]
[1733003512223,0.10523555,96975.0,96974.0,0.01653046]
[1733003512710,0.12549502,96975.0,96974.0,0.01653046]
[1733003512949,0.12549502,96975.0,96974.0,0.012]
[1733003513170,0.10523555,96975.0,96974.0,0.012]
[1733003513403,0.00211655,96975.0,96974.0,0.01653046]
[1733003513838,0.10523555,96975.0,96974.0,0.01653046]
[1733003514711,0.10523555,96975.0,96974.0,0.012]
[1733003514917,0.18433555,96975.0,96974.0,0.012]
[1733003515127,0.28718076,96975.0,96974.0,0.012]
[1733003516208,0.28618076,96975.0,96974.0,0.004]
[1733003516622,0.28618076,96975.0,96974.0,0.009]
[1733003516623,0.28718076,96975.0,96974.0,0.009]
[1733003516855,0.28718076,96975.0,96974.0,0.005]
[1733003517292,0.28718076,96975.0,96974.0,0.008]
[1733003523716,0.28718076,96975.0,96974.0,0.01235823]
[1733003526615,0.33338076,96975.0,96974.0,0.01235823]
[1733003527268,0.33338076,96975.0,96974.0,0.008]
[1733003527496,0.33338076,96975.0,96974.0,0.005]
[1733003527712,0.33538076,96975.0,96974.0,0.005]
[1733003527924,0.103128,96966.0,96965.0,0.09258743]
[1733003528162,0.103129,96965.0,96964.0,0.09258743]
[1733003528362,0.20597421,96965.0,96964.0,0.09258743]
[1733003528579,0.103135,96960.0,96959.0,0.09258743]
[1733003528806,0.103136,96959.0,96958.0,0.09258743]
[1733003529019,0.20598121,96959.0,96958.0,0.09258743]
[1733003529500,0.103137,96958.0,96957.0,0.09258743]
[1733003529743,0.20598221,96958.0,96957.0,0.09258743]
[1733003530605,0.20598221,96958.0,96955.0,0.09258743]
[1733003530606,0.103138,96957.0,96955.0,0.09258743]
[1733003530829,0.103139,96956.0,96955.0,0.09258743]
[1733003531274,0.103139,96956.0,96953.0,0.13974525]
[1733003531485,0.103139,96956.0,96955.0,0.09254946]
[1733003531714,0.10284521,96957.0,96955.0,0.09254946]
[1733003532150,0.10284521,96957.0,96955.0,0.09354946]
[1733003532368,0.20598321,96957.0,96955.0,0.09354946]
[1733003532817,0.103139,96956.0,96955.0,0.09354946]
[1733003533254,0.10284521,96957.0,96955.0,0.09354946]
[1733003533461,0.10284521,96957.0,96955.0,0.09254946]
[1733003533678,0.20598321,96957.0,96955.0,0.09254946]
[1733003533885,0.20598321,96957.0,96955.0,0.09354946]
[1733003534103,0.20598321,96957.0,96955.0,0.09454946]
[1733003534529,0.20598321,96957.0,96955.0,0.09354946]
[1733003535619,0.20598321,96957.0,96956.0,0.09254946]
[1733003536497,0.10284521,96957.0,96956.0,0.09254946]
[1733003537584,0.10284521,96957.0,96956.0,0.09354946]
[1733003537821,0.10284521,96957.0,96956.0,0.001]
[1733003539080,0.334051,96969.0,96956.0,0.001]
[1733003539299,0.20597221,96968.0,96960.0,0.09256594]
[1733003539535,0.10284521,96968.0,96962.0,0.103132]
[1733003539747,0.103128,96967.0,96961.0,0.09256594]
[1733003539962,0.10284521,96966.0,96961.0,0.19569894]
[1733003540161,0.10284521,96966.0,96961.0,0.09256594]
[1733003540376,0.10284521,96966.0,96962.0,0.0043766]
[1733003540589,0.10284521,96966.0,96962.0,0.09694254]
[1733003541047,0.10284521,96966.0,96963.0,0.103131]
[1733003541516,0.10284521,96966.0,96962.0,0.09694254]
[1733003541517,0.10684521,96966.0,96964.0,0.10750571]
[1733003541945,0.10284521,96966.0,96965.0,0.01235663]
[1733003542332,0.10284521,96966.0,96965.0,0.19576089]
[1733003542333,0.002,96966.0,96965.0,0.19576089]
[1733003542555,0.00111655,96975.0,96974.0,0.10312]
[1733003542772,0.00111655,96975.0,96974.0,0.30154961]
[1733003543200,0.00111655,96975.0,96974.0,0.30592087]
[1733003543644,0.00111655,96975.0,96974.0,0.16704789]
[1733003544524,0.00111655,96975.0,96974.0,0.16804789]
[1733003544783,0.00111655,96975.0,96974.0,0.16704789]
[1733003545213,0.00111655,96975.0,96974.0,0.16904789]
[1733003545425,0.00111655,96975.0,96974.0,0.16704789]
[1733003545658,0.00111655,96975.0,96974.0,0.35421187]
[1733003546087,0.00111655,96975.0,96974.0,0.35521187]
[1733003546516,0.00111655,96975.0,96974.0,0.16904789]
[1733003546953,0.00111655,96975.0,96974.0,0.16704789]
[1733003547165,0.00111655,96975.0,96974.0,0.16887289]
[1733003547418,0.00111655,96975.0,96974.0,0.17004789]
[1733003548109,0.00111655,96975.0,96974.0,0.17187289]
[1733003548331,0.00111655,96975.0,96974.0,0.17104789]
[1733003548997,0.00111655,96975.0,96974.0,0.40253799]
[1733003549244,0.00111655,96975.0,96974.0,0.17104789]
[1733003550812,0.00111655,96975.0,96974.0,0.17103937]
[1733003553941,0.00111655,96975.0,96974.0,0.40256135]
[1733003554382,0.00111655,96975.0,96974.0,0.1710351]
[1733003554623,0.00111655,96975.0,96974.0,0.2520351]
[1733003556194,0.00111655,96975.0,96974.0,0.23969126]
[1733003570289,0.00111655,96975.0,96974.0,0.24381826]
[1733003578480,0.00111655,96975.0,96974.0,0.24316955]
[1733003583673,0.00111655,96975.0,96974.0,0.52099931]
[1733003584721,0.00111655,96975.0,96974.0,0.24316955]
[1733003586469,0.00111655,96975.0,96974.0,0.16216955]
[1733003586683,0.00111655,96975.0,96974.0,0.16399445]
[1733003586894,0.00111655,96975.0,96974.0,0.16485835]
[1733003588214,0.00111655,96975.0,96974.0,0.16303345]
[1733003588667,0.00111655,96975.0,96974.0,0.11583345]
[1733003588879,0.00111655,96975.0,96974.0,0.11170645]
[1733003596137,0.00111655,96975.0,96974.0,0.00923516]
[1733003596982,0.00111655,96975.0,96974.0,0.11235516]
[1733003599054,0.00111655,96975.0,96974.0,0.00923516]
[1733003599275,0.10423555,96975.0,96974.0,0.00923516]
[1733003599731,0.15143555,96975.0,96974.0,0.00923516]
[1733003599917,0.15143555,96975.0,96974.0,0.28770283]
[1733003600159,0.15143555,96975.0,96974.0,0.28333157]
[1733003600342,0.15143555,96975.0,96974.0,0.00905181]
[1733003600596,0.15143555,96975.0,96974.0,0.28751948]
[1733003600838,0.15143555,96975.0,96974.0,0.00905181]
[1733003601054,0.15143555,96975.0,96974.0,0.28751948]
[1733003601271,0.15143555,96975.0,96974.0,0.00905181]
[1733003611553,0.15143555,96975.0,96974.0,0.02450805]
[1733003612162,0.15143555,96975.0,96974.0,0.00905181]
[1733003619513,0.10423555,96975.0,96974.0,0.00905181]
[1733003620617,0.20708076,96975.0,96974.0,0.00905181]
[1733003620834,0.33568076,96975.0,96974.0,0.00905181]
[1733003621046,0.33568076,96975.0,96974.0,0.24087356]
[1733003621269,0.33568076,96975.0,96974.0,0.0048639]
[1733003621508,0.33568076,96975.0,96974.0,0.00890141]
[1733003621728,0.34533579,96975.0,96974.0,0.00890141]
[1733003622370,0.34533579,96975.0,96974.0,0.0048639]
[1733003623870,0.34533579,96975.0,96974.0,0.0038639]
[1733003624358,0.34933579,96975.0,96974.0,0.0008639]
[1733003624774,0.34533579,96975.0,96974.0,0.0008639]
[1733003624981,0.35333579,96975.0,96974.0,0.0018639]
[1733003625189,0.35733579,96975.0,96974.0,0.0018639]
[1733003625392,0.34933579,96975.0,96974.0,0.0008639]
[1733003625628,0.35733579,96975.0,96974.0,0.0018639]
[1733003626446,0.35333579,96975.0,96974.0,0.0018639]
[1733003626657,0.35332704,96975.0,96974.0,0.0018639]
[1733003626894,0.35732704,96975.0,96974.0,0.0018639]
[1733003628014,0.34532704,96975.0,96974.0,0.0008639]
[1733003628242,0.34532704,96975.0,96974.0,0.0018639]
[1733003628243,0.35632704,96975.0,96974.0,0.0018639]
[1733003629509,0.34668076,96975.0,96974.0,0.0018639]
[1733003636483,0.21808076,96975.0,96974.0,0.0018639]
[1733003636895,0.21808076,96975.0,96974.0,0.00591449]
[1733003637142,0.21808076,96975.0,96974.0,0.0018639]
[1733003637349,0.21808076,96975.0,96974.0,0.00591449]
[1733003637557,0.21808076,96975.0,96974.0,0.0018639]
[1733003637769,0.21808076,96975.0,96974.0,0.00591449]
[1733003638197,0.11496176,96975.0,96974.0,0.00591449]
[1733003638418,0.11496176,96975.0,96974.0,0.09861442]
[1733003638858,0.21808076,96975.0,96974.0,0.00591449]
[1733003640193,0.21808076,96975.0,96974.0,0.14496439]
[1733003640370,0.21808076,96975.0,96974.0,0.00591449]
[1733003642404,0.11523555,96975.0,96974.0,0.00591449]
[1733003643451,0.11332265,96975.0,96974.0,0.00591449]
[1733003644528,0.11332265,96975.0,96974.0,0.23766433]
[1733003645169,0.11505105,96975.0,96974.0,0.23766433]
[1733003645394,3.11505105,96975.0,96974.0,0.23766433]
[1733003645876,3.11505105,96975.0,96974.0,0.23361374]
[1733003647834,3.11505105,96975.0,96974.0,0.23355246]
[1733003650296,3.11505105,96975.0,96974.0,0.0018639]
[1733003656412,3.11505105,96975.0,96974.0,0.23359322]
[1733003656596,3.11505105,96975.0,96974.0,0.0018639]
[1733003657970,3.11505105,96975.0,96974.0,0.23360209]
[1733003658185,3.11505105,96975.0,96974.0,0.0018639]
[1733003669843,3.11505105,96975.0,96974.0,0.23366122]
[1733003671136,3.11505105,96975.0,96974.0,0.0018639]
[1733003671995,3.21789626,96975.0,96974.0,0.0018639]
[1733003672929,3.21789626,96975.0,96974.0,0.1873426]
[1733003673143,3.21789626,96975.0,96974.0,0.0018639]
[1733003673957,3.21789626,96975.0,96974.0,0.23372423]
[1733003676366,3.21789626,96975.0,96974.0,0.0018639]
[1733003694179,3.21758272,96975.0,96974.0,0.0018639]
[1733003697140,3.34128272,96975.0,96974.0,0.0018639]
[1733003697366,3.35095332,96975.0,96974.0,0.09468988]
[1733003697786,3.35095332,96975.0,96974.0,0.0018639]
[1733003697999,3.35095332,96975.0,96974.0,0.09468988]
[1733003698230,3.35095332,96975.0,96974.0,0.0018639]
[1733003699054,3.36642005,96975.0,96974.0,0.0018639]
[1733003700175,3.34128272,96975.0,96974.0,0.0018639]
[1733003700409,3.36641317,96975.0,96974.0,0.0018639]
[1733003702688,3.36640754,96975.0,96974.0,0.0018639]
[1733003702919,3.24270754,96975.0,96974.0,0.0018639]
[1733003703350,3.22724611,96975.0,96974.0,0.0018639]
[1733003703586,3.22724611,96975.0,96974.0,0.18734143]
[1733003703999,3.22724611,96975.0,96974.0,0.0018639]
[1733003704758,3.22724611,96975.0,96974.0,0.18734143]
[1733003704999,3.22724611,96975.0,96974.0,0.0018639]
[1733003705204,3.22724611,96975.0,96974.0,0.18734143]
[1733003705532,3.22724611,96975.0,96974.0,0.0018639]
[1733003705704,3.22724611,96975.0,96974.0,0.18734143]
[1733003706121,3.22724537,96975.0,96974.0,0.0018639]
[1733003706522,3.226918,96975.0,96974.0,0.18734143]
[1733003706884,3.226918,96975.0,96974.0,0.0018639]
[1733003707079,3.226918,96975.0,96974.0,0.18734143]
[1733003708184,3.226918,96975.0,96974.0,0.0018639]
[1733003708664,3.226918,96975.0,96974.0,0.18734935]
[1733003708872,3.226918,96975.0,96974.0,0.0018639]
[1733003714356,3.226918,96975.0,96974.0,0.23374117]
[1733003716635,3.21725535,96975.0,96974.0,0.23374117]
[1733003716852,3.22691932,96975.0,96974.0,0.23374117]
[1733003717537,3.22691932,96975.0,96974.0,0.0018639]
[1733003718943,3.21725535,96975.0,96974.0,0.0018639]
[1733003719158,3.22691936,96975.0,96974.0,0.0018639]
[1733003719378,3.12407415,96975.0,96974.0,0.0018639]
[1733003719597,3.11441014,96975.0,96974.0,0.0018639]
[1733003727707,3.01129114,96975.0,96974.0,0.0018639]
[1733003732605,3.01129114,96975.0,96974.0,0.00073726]
[1733003733666,3.11441014,96975.0,96974.0,0.00073726]
[1733003734363,3.01129114,96975.0,96974.0,0.00073726]
[1733003734583,3.01129114,96975.0,96974.0,0.10385726]
[1733003735102,3.01129114,96975.0,96974.0,0.15490375]
[1733003736055,3.0087284,96975.0,96974.0,0.15490375]
[1733003736281,3.0017284,96975.0,96974.0,0.15416649]
[1733003736514,3.0017284,96975.0,96974.0,0.15616649]
[1733003736818,3.0017284,96975.0,96974.0,0.15703069]
[1733003742798,3.0017284,96975.0,96974.0,0.11003069]
[1733003745104,3.0017284,96975.0,96974.0,0.00691069]
[1733003745405,3.0017284,96975.0,96974.0,0.11003069]
[1733003745661,3.0017284,96975.0,96974.0,0.1059842]
[1733003745862,3.0017284,96975.0,96974.0,0.11002426]
[1733003747714,3.0017284,96975.0,96974.0,0.00690426]
[1733003748163,3.1048474,96975.0,96974.0,0.0028642]
[1733003769236,3.0017284,96975.0,96974.0,0.0028642]
[1733003769645,3.1048474,96975.0,96974.0,0.0028642]
[1733003774602,3.10442412,96975.0,96974.0,0.0028642]
[1733003777209,3.25636933,96975.0,96974.0,0.0028642]
[1733003777469,3.33786933,96975.0,96974.0,0.0028642]
[1733003777696,3.33786933,96975.0,96974.0,0.14212428]
[1733003777950,3.33786933,96975.0,96974.0,0.09570992]
[1733003778215,3.33786933,96975.0,96974.0,0.0028642]
[1733003778442,3.3630006,96975.0,96974.0,0.0028642]
[1733003779858,3.3630006,96975.0,96974.0,0.0008642]
[1733003780315,3.3710006,96975.0,96974.0,0.0018642]
[1733003780855,3.3750006,96975.0,96974.0,0.0018642]
[1733003786249,3.34986933,96975.0,96974.0,0.0018642]
[1733003786448,3.37496934,96975.0,96974.0,0.0018642]
[1733003799158,3.36531549,96975.0,96974.0,0.0018642]
[1733003800822,3.34986933,96975.0,96974.0,0.0018642]
[1733003805018,3.3749833,96975.0,96974.0,0.0018642]
[1733003808498,3.34986933,96975.0,96974.0,0.0018642]
[1733003808707,3.37501365,96975.0,96974.0,0.0018642]
[1733003815829,3.37501365,96975.0,96974.0,0.00010778]
[1733003816435,3.37501365,96975.0,96974.0,0.00183618]
[1733003820242,3.32591365,96975.0,96974.0,0.00183618]
[1733003828760,3.30076933,96975.0,96974.0,0.00183618]
[1733003828971,3.32591398,96975.0,96974.0,0.00183618]
[1733003832069,3.32591295,96975.0,96974.0,0.00183618]
[1733003833471,3.35653995,96975.0,96974.0,0.00183618]
[1733003833891,3.35653995,96975.0,96974.0,0.00032325]
[1733003834569,3.37200835,96975.0,96974.0,0.00032325]
[1733003835542,3.37200431,96975.0,96974.0,0.00032325]
[1733003836191,3.37200418,96975.0,96974.0,0.00032325]
[1733003837579,3.35653658,96975.0,96974.0,0.00032325]
[1733003840827,3.38864997,96975.0,96974.0,0.00032325]
[1733003841193,3.35653658,96975.0,96974.0,0.00032325]
[1733003841539,3.34686933,96975.0,96974.0,0.00032325]
[1733003841783,3.35653379,96975.0,96974.0,0.00032325]
[1733003846099,3.3565336,96975.0,96974.0,0.00032325]
[1733003849592,3.34686933,96975.0,96974.0,0.00032325]
[1733003849822,3.35653532,96975.0,96974.0,0.00032325]
[1733003853995,3.31043532,96975.0,96974.0,0.00032325]
[1733003856562,3.31043786,96975.0,96974.0,0.00032325]
[1733003857003,3.31043788,96975.0,96974.0,0.00032325]
[1733003859416,3.34256103,96975.0,96974.0,0.00032325]
[1733003859652,3.39966103,96975.0,96974.0,0.00032325]
[1733003861050,3.54966103,96975.0,96974.0,0.00032325]
[1733003861700,3.56513267,96975.0,96974.0,0.00032325]
[1733003862801,0.103134,96961.0,96960.0,0.0928263]
[1733003863019,0.103134,96961.0,96959.0,0.0928263]
[1733003863020,0.103135,96960.0,96959.0,0.0928263]
[1733003863167,0.103135,96960.0,96956.0,0.0928263]
[1733003863168,0.103138,96957.0,96956.0,0.0928263]
[1733003863368,0.103139,96956.0,96955.0,0.0928263]
[1733003863635,0.103141,96954.0,96953.0,0.0936904]
[1733003863852,0.20598621,96954.0,96953.0,0.0936904]
[1733003864302,0.20598621,96954.0,96953.0,0.0008641]
[1733003864520,0.20598621,96954.0,96953.0,0.0936904]
[1733003864953,0.21565521,96954.0,96953.0,0.0936904]
[1733003865362,0.21565521,96954.0,96953.0,0.0008641]
[1733003865994,0.22365521,96954.0,96953.0,0.0936904]
[1733003866421,0.22765037,96954.0,96953.0,0.0936904]
[1733003866832,0.22765037,96954.0,96953.0,0.0008641]
[1733003867032,0.22765037,96954.0,96951.0,0.09280288]
[1733003867033,0.17541608,96954.0,96951.0,0.09280288]
[1733003867259,0.103143,96952.0,96951.0,0.09280288]
[1733003867482,0.103143,96952.0,96948.0,0.13920433]
[1733003867483,0.103147,96949.0,96948.0,0.13920433]
[1733003867684,0.26656308,96949.0,96948.0,0.13920433]
[1733003867891,0.23757046,96949.0,96948.0,0.13920433]
[1733003868324,0.23757046,96949.0,96947.0,0.0454]
[1733003868325,0.103148,96948.0,96947.0,0.18460433]
[1733003868535,0.23757146,96948.0,96947.0,0.18460433]
[1733003868950,0.23756339,96948.0,96947.0,0.18460433]
[1733003869949,0.23956339,96948.0,96947.0,0.18460433]
[1733003870160,0.23956339,96948.0,96947.0,0.0454]
[1733003870378,0.24356339,96948.0,96947.0,0.04885297]
[1733003872426,0.24356339,96948.0,96947.0,0.00345297]
[1733003872641,0.10315,96946.0,96945.0,0.13920433]
[1733003872865,0.23111396,96946.0,96945.0,0.13920433]
[1733003873098,0.23756539,96946.0,96945.0,0.13920433]
[1733003873328,0.23111396,96946.0,96945.0,0.13920433]
[1733003873909,0.23611396,96946.0,96945.0,0.13920433]
[1733003874116,0.103151,96945.0,96944.0,0.13920433]
[1733003874317,0.23111496,96945.0,96944.0,0.13920433]
[1733003875219,0.23111496,96945.0,96944.0,0.13926584]
[1733003875822,0.23211496,96945.0,96944.0,0.13926584]
[1733003876035,0.23210091,96945.0,96944.0,6.151e-05]
[1733003876283,0.2321004,96945.0,96944.0,6.151e-05]
[1733003876500,0.2351004,96945.0,96944.0,6.151e-05]
[1733003878475,0.23510153,96945.0,96944.0,6.151e-05]
[1733003879366,0.25557537,96945.0,96944.0,6.151e-05]
[1733003879780,0.25557537,96945.0,96944.0,0.13919064]
[1733003882021,0.25557643,96945.0,96944.0,0.13919064]
[1733003882177,0.25557643,96945.0,96944.0,6.151e-05]
[1733003883075,0.25557643,96945.0,96944.0,0.13919064]
[1733003883301,0.25557643,96945.0,96944.0,6.151e-05]
[1733003885382,0.26202796,96945.0,96944.0,6.151e-05]
[1733003885605,0.25557643,96945.0,96944.0,0.00351912]
[1733003885839,0.26202796,96945.0,96944.0,0.00438352]